bitfinex/quotes_BTCUSD_20241211
["timestamp","ask_amount","ask_price","bid_price","bid_amount"]
[1733925970794,0.202222,98901.0,98900.0,0.003]
[1733925970994,0.30754724,98901.0,98900.0,0.003]
[1733925971801,0.202242,98891.0,98880.0,0.0463]
[1733925972003,0.202242,98891.0,98880.0,0.04731121]
[1733925972440,0.197282,98891.0,98880.0,0.0463]
[1733925972646,0.197282,98891.0,98880.0,0.04731121]
[1733925973069,0.197282,98891.0,98890.0,0.0050858]
[1733925973689,0.202233,98896.0,98890.0,0.0050858]
[1733925973898,0.20224,98892.0,98890.0,0.0050858]
[1733925974537,0.20224,98892.0,98890.0,0.0090858]
[1733925974750,0.10532524,98891.0,98890.0,0.0090858]
[1733925974962,0.10532524,98891.0,98890.0,8.58e-05]
[1733925975171,0.10532524,98891.0,98890.0,0.0040858]
[1733925975645,0.10532524,98891.0,98890.0,8.58e-05]
[1733925975871,0.10532524,98891.0,98890.0,0.0030858]
[1733925976071,0.10532524,98891.0,98890.0,0.0020858]
[1733925976505,0.202226,98899.0,98890.0,0.0020858]
[1733925976506,0.20223,98897.0,98890.0,0.0020858]
[1733925976723,0.11865061,98910.0,98890.0,0.0020858]
[1733925976724,0.202209,98908.0,98891.0,0.1273]
[1733925976927,0.2022,98912.0,98892.0,0.00101103]
[1733925977140,0.2022,98912.0,98893.0,0.20324903]
[1733925977554,0.2022,98912.0,98894.0,0.00383329]
[1733925977762,0.11865061,98910.0,98894.0,0.00383329]
[1733925977996,0.202217,98904.0,98894.0,0.00383329]
[1733925978181,0.202217,98904.0,98891.0,0.14801948]
[1733925978404,0.202217,98904.0,98895.0,0.00383245]
[1733925978405,0.202226,98899.0,98895.0,0.00383245]
[1733925978607,0.11865061,98901.0,98891.0,0.1273]
[1733925978823,0.202227,98899.0,98896.0,0.00383161]
[1733925979034,0.202234,98895.0,98891.0,0.1273]
[1733925979251,0.202228,98898.0,98894.0,0.001]
[1733925979471,0.202212,98906.0,98892.0,0.00101113]
[1733925979707,0.202212,98906.0,98891.0,0.329541]
[1733925979708,0.01003569,98919.0,98895.0,0.004]
[1733925979935,0.15,98910.0,98896.0,0.00101099]
[1733925980144,0.15,98910.0,98891.0,0.1273]
[1733925980145,0.15,98907.0,98891.0,0.1273]
[1733925980358,0.202212,98906.0,98892.0,0.00101102]
[1733925980566,0.12895723,98920.0,98894.0,0.004]
[1733925980774,0.202209,98908.0,98895.0,0.001011]
[1733925980982,0.202209,98908.0,98896.0,0.00101102]
[1733925981188,0.202202,98911.0,98896.0,0.00101102]
[1733925981400,0.202202,98911.0,98897.0,0.00383077]
[1733925981604,0.202202,98911.0,98898.0,0.001011]
[1733925981811,0.202202,98911.0,98899.0,0.001011]
[1733925982026,0.15,98912.0,98899.0,0.001011]
[1733925982235,0.002,98908.0,98899.0,0.001011]
[1733925982450,0.002,98908.0,98901.0,0.202222]
[1733925982660,0.002,98908.0,98902.0,0.00101098]
[1733925982868,0.002,98908.0,98904.0,0.202214]
[1733925983126,0.00033684,98920.0,98909.0,0.202205]
[1733925983340,0.003,98911.0,98910.0,0.12831085]
[1733925983569,0.003,98911.0,98910.0,0.33433462]
[1733925983774,0.003,98911.0,98910.0,0.33332377]
[1733925983986,0.003,98911.0,98910.0,0.13111977]
[1733925984199,0.003,98911.0,98910.0,0.14264197]
[1733925984408,0.003,98911.0,98910.0,0.14365283]
[1733925984609,0.00033684,98920.0,98910.0,0.14365283]
[1733925984835,0.00033684,98920.0,98911.0,0.01253306]
[1733925985025,0.00033684,98920.0,98912.0,0.0115222]
[1733925985233,0.00033684,98920.0,98910.0,0.13111977]
[1733925985234,0.00033684,98920.0,98913.0,0.00482812]
[1733925985445,0.00033684,98920.0,98913.0,0.01635837]
[1733925985605,0.00033684,98920.0,98914.0,0.01534667]
[1733925985817,0.00033684,98920.0,98915.0,0.00101085]
[1733925985992,0.00033684,98920.0,98916.0,0.00482559]
[1733925986605,0.00033684,98920.0,98916.0,0.00381474]
[1733925986999,0.00033684,98920.0,98911.0,0.00101087]
[1733925987202,0.00033684,98920.0,98917.0,0.0038139]
[1733925987471,0.00033684,98920.0,98916.0,0.002]
[1733925987861,0.00033684,98920.0,98917.0,0.0038139]
[1733925988307,0.202185,98919.0,98916.0,0.002]
[1733925988498,0.00033684,98920.0,98918.0,0.00381306]
[1733925988691,0.00033684,98920.0,98917.0,0.0048139]
[1733925988841,0.202185,98919.0,98917.0,0.001]
[1733925989458,0.10532524,98918.0,98916.0,0.003]
[1733925989834,0.352189,98917.0,98916.0,0.003]
[1733925990032,0.202213,98906.0,98900.0,0.083]
[1733925990241,0.202213,98906.0,98901.0,0.00382725]
[1733925990645,0.202208,98908.0,98900.0,0.083]
[1733925991704,0.202218,98904.0,98900.0,0.083]
[1733925991935,0.202211,98907.0,98900.0,0.083]
[1733925992139,0.001,98906.0,98900.0,0.089]
[1733925992348,0.001,98906.0,98900.0,0.094]
[1733925992571,0.001,98906.0,98901.0,0.00382725]
[1733925992785,0.202211,98907.0,98901.0,0.00382725]
[1733925992982,0.203211,98907.0,98901.0,0.00382725]
[1733925993188,0.202219,98903.0,98901.0,0.00382725]
[1733925993812,0.202219,98903.0,98901.0,0.00882725]
[1733925994622,0.202219,98903.0,98901.0,0.01582725]
[1733925995029,0.30754424,98903.0,98901.0,0.00882725]
[1733925995231,0.30754524,98902.0,98901.0,0.003]
[1733925995451,0.45754524,98902.0,98901.0,0.009]
[1733925996088,0.45754524,98902.0,98901.0,0.003]
[1733925996286,0.45754524,98902.0,98901.0,0.005]
[1733925996719,0.45754524,98902.0,98901.0,0.003]
[1733925997138,0.25532524,98902.0,98901.0,0.001]
[1733925997628,0.32232597,98902.0,98901.0,0.001]
[1733925997834,0.34562597,98902.0,98901.0,0.001]
[1733925998487,0.202222,98901.0,98875.0,0.0496]
[1733925998711,0.15,98898.0,98875.0,0.0496]
[1733925998924,0.11865061,98900.0,98872.0,0.0786]
[1733925998925,0.352242,98891.0,98872.0,0.0786]
[1733925999134,0.45756724,98891.0,98872.0,0.0786]
[1733926000859,0.45756724,98891.0,98866.0,0.01998846]
[1733926001054,0.45756724,98891.0,98864.0,0.1229]
[1733926001255,0.48905942,98891.0,98864.0,0.1229]
[1733926001667,0.48905942,98891.0,98890.0,8e-07]
[1733926001668,0.78535872,98891.0,98890.0,8e-07]
[1733926001892,0.78535872,98891.0,98890.0,0.0020008]
[1733926002144,0.87902731,98891.0,98890.0,0.0020008]
[1733926002385,0.59205942,98891.0,98890.0,8e-07]
[1733926002635,0.49205942,98891.0,98890.0,8e-07]
[1733926002855,0.46256724,98891.0,98890.0,8e-07]
[1733926003481,0.46056724,98891.0,98890.0,8e-07]
[1733926003709,0.467621,98891.0,98890.0,8e-07]
[1733926003923,0.470621,98891.0,98890.0,0.0010008]
[1733926004127,0.470621,98891.0,98890.0,8e-07]
[1733926004542,0.473621,98891.0,98890.0,8e-07]
[1733926004953,0.475621,98891.0,98890.0,8e-07]
[1733926005576,0.473621,98891.0,98890.0,8e-07]
[1733926005780,0.474621,98891.0,98890.0,8e-07]
[1733926006856,0.25532524,98891.0,98890.0,8e-07]
[1733926007493,0.45756724,98891.0,98890.0,8e-07]
[1733926007912,0.30756724,98891.0,98890.0,8e-07]
[1733926008777,0.25682923,98891.0,98890.0,8e-07]
[1733926008979,0.40682923,98891.0,98890.0,8e-07]
[1733926009391,0.40582923,98891.0,98890.0,8e-07]
[1733926010059,0.40282923,98891.0,98890.0,8e-07]
[1733926011518,0.352242,98891.0,98890.0,8e-07]
[1733926011934,0.45756724,98891.0,98890.0,8e-07]
[1733926012152,0.54478467,98891.0,98890.0,8e-07]
[1733926012353,0.45756724,98891.0,98890.0,8e-07]
[1733926013415,0.48056724,98891.0,98890.0,8e-07]
[1733926013669,0.48056724,98891.0,98890.0,0.0009608]
[1733926013905,0.48056724,98891.0,98890.0,0.001]
[1733926014126,0.48056724,98891.0,98863.0,0.0478]
[1733926014127,0.202283,98871.0,98863.0,0.0478]
[1733926014334,0.45760824,98871.0,98863.0,0.0478]
[1733926015376,0.45760824,98871.0,98870.0,0.00025116]
[1733926016859,0.45760824,98871.0,98870.0,0.00225116]
[1733926017855,0.4676607,98871.0,98870.0,0.00225116]
[1733926021632,0.45294953,98871.0,98870.0,0.00225116]
[1733926021854,0.45294953,98871.0,98870.0,0.00025116]
[1733926022265,0.48539405,98871.0,98870.0,0.00025116]
[1733926022415,0.48539405,98871.0,98842.0,0.0487]
[1733926022416,0.202341,98843.0,98842.0,0.0487]
[1733926022626,0.202341,98843.0,98842.0,0.00389731]
[1733926022836,0.202341,98843.0,98840.0,0.0758]
[1733926022837,0.30766624,98843.0,98840.0,0.0758]
[1733926023659,0.25532524,98842.0,98831.0,0.0461]
[1733926024675,0.25532524,98842.0,98828.0,0.0822]
[1733926024882,0.25532524,98842.0,98820.0,0.0474859]
[1733926025522,0.36551671,98842.0,98820.0,0.0474859]
[1733926025728,0.36551671,98842.0,98841.0,0.00399254]
[1733926025937,0.71995235,98842.0,98841.0,0.00399254]
[1733926026083,0.53851671,98842.0,98841.0,0.00299254]
[1733926026481,0.54251601,98842.0,98841.0,0.00299254]
[1733926026699,0.54351601,98842.0,98841.0,0.00299254]
[1733926026919,0.36651671,98842.0,98841.0,0.00299254]
[1733926027126,0.26551671,98842.0,98841.0,0.00299254]
[1733926027341,0.26551671,98842.0,98841.0,0.00399254]
[1733926027342,0.11951671,98842.0,98841.0,0.00399254]
[1733926027523,0.12051671,98842.0,98841.0,0.00399254]
[1733926027771,0.11951671,98842.0,98841.0,0.00299254]
[1733926028193,0.12051671,98842.0,98841.0,0.00399254]
[1733926028647,0.11651671,98842.0,98841.0,0.00399254]
[1733926028855,0.27051671,98842.0,98841.0,0.00399254]
[1733926029336,0.26551671,98842.0,98841.0,0.00299254]
[1733926029729,0.26651671,98842.0,98841.0,0.00299254]
[1733926030611,0.26751671,98842.0,98841.0,0.00299254]
[1733926031505,0.35496918,98842.0,98841.0,0.00299254]
[1733926031722,0.26651671,98842.0,98841.0,0.00299254]
[1733926032324,0.26551671,98842.0,98841.0,0.00299254]
[1733926032542,0.26651671,98842.0,98841.0,0.00299254]
[1733926033262,0.26751671,98842.0,98841.0,0.00299254]
[1733926036146,0.16219147,98842.0,98841.0,0.13039254]
[1733926036597,0.001,98842.0,98841.0,0.13039254]
[1733926036810,0.20233,98848.0,98841.0,0.13039254]
[1733926037157,0.002,98842.0,98841.0,0.13429147]
[1733926037571,0.001,98842.0,98841.0,0.13429147]
[1733926037979,0.002,98842.0,98841.0,0.13429147]
[1733926038183,0.001,98842.0,98841.0,0.13429147]
[1733926038393,0.15,98853.0,98841.0,0.13429147]
[1733926038394,0.15,98849.0,98841.0,0.13429147]
[1733926038593,0.202308,98859.0,98842.0,0.0812]
[1733926038722,0.202316,98855.0,98842.0,0.0822116]
[1733926038928,0.202316,98855.0,98843.0,0.00389717]
[1733926039152,0.202316,98855.0,98844.0,0.0822]
[1733926039618,0.404632,98855.0,98845.0,0.00389549]
[1733926040025,0.202316,98855.0,98845.0,0.00389549]
[1733926040336,0.15,98857.0,98846.0,0.0822]
[1733926040471,0.202301,98863.0,98846.0,0.0822]
[1733926040695,0.202301,98863.0,98848.0,0.0822]
[1733926040696,0.001,98855.0,98848.0,0.0822]
[1733926040936,0.001,98855.0,98849.0,0.00101151]
[1733926041084,0.002,98855.0,98850.0,0.00101151]
[1733926041484,0.002,98855.0,98851.0,0.07979038]
[1733926041693,0.002,98855.0,98851.0,0.08080189]
[1733926041900,0.002,98855.0,98852.0,0.202322]
[1733926042123,0.002,98855.0,98853.0,0.0806]
[1733926042325,0.15,98870.0,98853.0,0.0844887]
[1733926042605,0.20234004,98871.0,98854.0,0.04731151]
[1733926042606,5.504e-05,98871.0,98854.0,0.04731151]
[1733926042816,5.504e-05,98871.0,98862.0,0.0476]
[1733926042817,0.001,98863.0,98862.0,0.0476]
[1733926042930,0.001,98863.0,98862.0,0.1279]
[1733926043136,5.504e-05,98871.0,98864.0,0.0803]
[1733926043343,5.504e-05,98871.0,98866.0,0.0803]
[1733926043553,5.504e-05,98871.0,98868.0,0.0803]
[1733926043757,5.504e-05,98871.0,98868.0,0.08131134]
[1733926043956,5.504e-05,98871.0,98870.0,0.0803]
[1733926044404,5.504e-05,98871.0,98870.0,0.08417436]
[1733926045643,0.10538028,98871.0,98870.0,0.08417436]
[1733926045861,5.504e-05,98871.0,98870.0,0.0803]
[1733926046073,5.504e-05,98871.0,98870.0,0.0823]
[1733926046277,5.504e-05,98871.0,98870.0,0.0833]
[1733926046473,5.504e-05,98871.0,98870.0,0.0813]
[1733926046685,5.504e-05,98871.0,98870.0,0.08417427]
[1733926046887,0.00205504,98871.0,98870.0,0.08417427]
[1733926047091,0.00205504,98871.0,98870.0,0.0803]
[1733926047291,0.00105504,98871.0,98870.0,0.0803]
[1733926047492,0.00105504,98871.0,98870.0,0.08417427]
[1733926047693,0.00105504,98871.0,98870.0,0.0803]
[1733926047897,0.00105504,98871.0,98870.0,0.08417427]
[1733926048104,5.504e-05,98871.0,98870.0,0.0803]
[1733926048313,5.504e-05,98871.0,98870.0,0.0823]
[1733926048719,5.504e-05,98871.0,98870.0,0.0803]
[1733926049117,5.504e-05,98871.0,98870.0,0.0823]
[1733926049546,5.504e-05,98871.0,98870.0,0.0803]
[1733926049950,5.504e-05,98871.0,98870.0,0.0823]
[1733926051206,5.504e-05,98871.0,98870.0,0.0803]
[1733926051405,5.504e-05,98871.0,98870.0,0.0823]
[1733926052929,0.10538028,98871.0,98870.0,0.0823]
[1733926053131,0.10538028,98871.0,98870.0,0.002]
[1733926053331,0.32237272,98871.0,98870.0,0.002]
[1733926053534,0.202339,98844.0,98843.0,0.0813]
[1733926053739,0.404678,98844.0,98841.0,0.00299254]
[1733926054072,0.202343,98842.0,98841.0,0.00299254]
[1733926054273,0.30766824,98842.0,98841.0,0.00299254]
[1733926055313,0.30966824,98842.0,98841.0,0.00299254]
[1733926055523,0.45966824,98842.0,98841.0,0.00299254]
[1733926055949,0.45766824,98842.0,98841.0,0.00299254]
[1733926056150,0.45966824,98842.0,98841.0,0.00299254]
[1733926056368,0.15,98841.0,98824.0,0.0799]
[1733926056584,0.202386,98821.0,98815.0,0.0463]
[1733926056799,0.45771124,98821.0,98815.0,0.0463]
[1733926057004,0.45771124,98821.0,98780.0,8.58e-05]
[1733926057178,0.45771124,98821.0,98794.0,0.0772]
[1733926057381,0.56802031,98821.0,98794.0,0.0772]
[1733926057790,0.56813712,98821.0,98794.0,0.0772]
[1733926057992,0.62114927,98821.0,98794.0,0.0772]
[1733926058237,0.56913712,98821.0,98794.0,0.0772]
[1733926058347,0.71913642,98821.0,98794.0,0.0772]
[1733926058551,0.77657309,98821.0,98794.0,0.0772]
[1733926058994,1.30786109,98821.0,98794.0,0.0772]
[1733926059169,1.30777328,98821.0,98794.0,0.0772]
[1733926059400,1.30977328,98821.0,98794.0,0.0772]
[1733926059820,1.46577328,98821.0,98820.0,0.0010859]
[1733926060020,1.57087657,98821.0,98820.0,0.0010859]
[1733926060232,1.46577328,98821.0,98820.0,9e-07]
[1733926060439,0.96378528,98821.0,98820.0,9e-07]
[1733926060646,0.1499993,98818.0,98781.0,0.0774]
[1733926060860,0.202447,98791.0,98781.0,0.0774]
[1733926061481,0.15,98799.0,98781.0,0.0774]
[1733926061482,0.15,98799.0,98781.0,0.07841228]
[1733926061692,0.15,98799.0,98782.0,0.00101228]
[1733926061892,0.10532524,98817.0,98791.0,0.1282]
[1733926061893,0.202403,98813.0,98791.0,0.1282]
[1733926062106,0.202403,98813.0,98792.0,0.00622779]
[1733926062107,0.20241,98809.0,98792.0,0.00622779]
[1733926062305,0.202396,98816.0,98793.0,0.0788]
[1733926062515,0.202406,98811.0,98795.0,0.0782]
[1733926062716,0.001,98799.0,98797.0,0.0782]
[1733926062919,0.001,98799.0,98798.0,0.00101202]
[1733926063130,0.001,98799.0,98798.0,0.00622051]
[1733926063592,0.001,98799.0,98798.0,0.13482051]
[1733926063831,0.005,98821.0,98807.0,0.079]
[1733926063975,0.005,98821.0,98808.0,0.04941195]
[1733926064182,0.005,98821.0,98808.0,0.0546083]
[1733926064423,0.005,98821.0,98808.0,0.04941195]
[1733926065256,0.005,98821.0,98808.0,0.25182295]
[1733926065460,0.005,98821.0,98814.0,0.202399]
[1733926065678,0.005,98821.0,98816.0,0.0762]
[1733926065884,0.005,98821.0,98817.0,0.00518541]
[1733926066928,0.040526,98820.0,98817.0,0.00518541]
[1733926067466,0.040526,98820.0,98817.0,0.00618541]
[1733926067657,0.040526,98820.0,98817.0,0.00518541]
[1733926067977,0.040526,98820.0,98817.0,0.00718541]
[1733926068412,0.040526,98820.0,98817.0,0.01118541]
[1733926069282,0.040526,98820.0,98817.0,0.00918541]
[1733926069646,0.040526,98820.0,98817.0,0.01318541]
[1733926071489,0.20239,98819.0,98817.0,0.01318541]
[1733926071700,0.15,98818.0,98817.0,0.00918541]
[1733926071905,0.25532524,98818.0,98817.0,0.006]
[1733926072319,0.25532524,98818.0,98817.0,0.002]
[1733926072946,0.25532524,98818.0,98817.0,0.004]
[1733926073158,0.25532524,98818.0,98810.0,8.58e-05]
[1733926073366,0.352406,98811.0,98810.0,8.58e-05]
[1733926073513,0.45773124,98811.0,98810.0,8.58e-05]
[1733926075124,0.46273124,98811.0,98810.0,8.58e-05]
[1733926075327,0.61273054,98811.0,98810.0,8.58e-05]
[1733926076368,0.61373054,98811.0,98810.0,8.58e-05]
[1733926076569,1.02357554,98811.0,98810.0,8.58e-05]
[1733926076776,1.00911554,98811.0,98810.0,8.58e-05]
[1733926077175,1.00711554,98811.0,98810.0,8.58e-05]
[1733926078048,1.00911554,98811.0,98810.0,8.58e-05]
[1733926079230,1.00911554,98811.0,98810.0,8e-07]
[1733926079432,0.76573054,98811.0,98810.0,8e-07]
[1733926079800,0.78873054,98811.0,98810.0,8e-07]
[1733926080024,0.89383383,98811.0,98810.0,8e-07]
[1733926080394,0.91258704,98811.0,98810.0,8e-07]
[1733926080594,0.90658704,98811.0,98810.0,8e-07]
[1733926080805,0.91858704,98811.0,98810.0,8e-07]
[1733926081252,0.91358704,98811.0,98810.0,8e-07]
[1733926081831,0.352447,98791.0,98780.0,0.0463858]
[1733926082067,0.45777224,98791.0,98780.0,0.0463858]
[1733926082941,0.45977224,98791.0,98780.0,0.0463858]
[1733926083142,0.55603686,98791.0,98780.0,0.0463858]
[1733926083359,0.45977224,98791.0,98780.0,0.0463858]
[1733926083942,0.45977224,98791.0,98790.0,0.08083738]
[1733926083943,0.002,98791.0,98790.0,0.08083738]
[1733926084348,0.002,98791.0,98790.0,0.08605639]
[1733926084797,0.002,98791.0,98790.0,0.13535639]
[1733926085437,0.152,98791.0,98790.0,0.13535639]
[1733926085635,0.15,98791.0,98790.0,0.13535639]
[1733926085840,0.151,98791.0,98790.0,0.13013738]
[1733926086018,0.154,98791.0,98790.0,0.13013738]
[1733926086270,0.153,98791.0,98790.0,0.13535632]
[1733926086403,0.15,98791.0,98790.0,0.13535632]
[1733926086605,0.153,98791.0,98790.0,0.13535632]
[1733926087006,0.15,98791.0,98790.0,0.13535632]
[1733926087208,0.003,98791.0,98790.0,0.14168863]
[1733926087408,0.003,98791.0,98790.0,0.13535632]
[1733926087409,0.004,98791.0,98790.0,0.13535632]
[1733926087636,0.001,98791.0,98790.0,0.13535632]
[1733926088614,0.001,98791.0,98790.0,0.13013738]
[1733926088824,0.202424,98803.0,98790.0,0.13545191]
[1733926089027,0.002,98791.0,98790.0,0.13545191]
[1733926089285,0.202404,98812.0,98790.0,0.13545191]
[1733926089286,0.202414,98808.0,98790.0,0.13545191]
[1733926089757,0.202421,98804.0,98790.0,0.13945191]
[1733926090086,0.202414,98807.0,98790.0,0.13645191]
[1733926090294,0.15,98806.0,98790.0,0.13645191]
[1733926090497,0.202418,98805.0,98790.0,0.14145191]
[1733926090771,0.202418,98805.0,98790.0,0.13545191]
[1733926090925,0.404841,98804.0,98790.0,0.13645191]
[1733926091135,0.15,98806.0,98790.0,0.13113738]
[1733926091329,0.13142608,98810.0,98790.0,0.13113738]
[1733926091330,0.202435,98798.0,98790.0,0.13113738]
[1733926091512,0.25478656,98798.0,98791.0,0.00531333]
[1733926091725,0.25478656,98798.0,98790.0,0.13113738]
[1733926091924,0.25478656,98798.0,98790.0,0.13313738]
[1733926092128,0.32108061,98800.0,98791.0,0.00531333]
[1733926092787,0.11865061,98800.0,98791.0,0.00731333]
[1733926092992,0.01266257,98800.0,98791.0,0.00731333]
[1733926093230,0.32107761,98801.0,98791.0,0.00531333]
[1733926093682,0.202437,98797.0,98791.0,0.00731333]
[1733926093853,0.202429,98800.0,98791.0,0.00731333]
[1733926094102,0.202429,98800.0,98791.0,0.002]
[1733926094357,0.202429,98800.0,98791.0,0.003]
[1733926094995,0.202429,98800.0,98791.0,0.001]
[1733926095219,0.32107761,98801.0,98791.0,0.001]
[1733926095400,0.32107761,98801.0,98791.0,0.003]
[1733926095401,0.202427,98801.0,98791.0,0.003]
[1733926095594,0.202427,98801.0,98791.0,0.002]
[1733926095747,0.202427,98801.0,98790.0,0.13013738]
[1733926095951,0.202435,98798.0,98791.0,0.002]
[1733926096160,0.202435,98798.0,98791.0,0.001]
[1733926096371,0.202442,98794.0,98791.0,0.001]
[1733926096573,0.202442,98794.0,98790.0,0.08083738]
[1733926096574,0.202445,98792.0,98790.0,0.08083738]
[1733926096773,0.10532524,98791.0,98790.0,0.08083738]
[1733926097474,0.202445,98792.0,98790.0,0.08083738]
[1733926098097,0.202445,98792.0,98790.0,0.07833004]
[1733926098830,0.204445,98792.0,98790.0,0.07833004]
[1733926099037,0.202445,98792.0,98790.0,0.07833004]
[1733926099443,0.202445,98792.0,98790.0,0.07933004]
[1733926099641,0.15,98791.0,98790.0,0.07933004]
[1733926099855,0.15,98791.0,98790.0,0.08133004]
[1733926100279,0.15,98791.0,98790.0,0.07833004]
[1733926100745,0.15,98791.0,98790.0,0.07933004]
[1733926101374,0.202442,98794.0,98790.0,0.07933004]
[1733926101375,0.15,98793.0,98790.0,0.07933004]
[1733926101801,0.01299195,98794.0,98790.0,0.07933004]
[1733926101994,0.01299195,98794.0,98790.0,0.07833004]
[1733926102232,0.202433,98798.0,98790.0,0.08033004]
[1733926102445,0.202433,98798.0,98791.0,0.00531328]
[1733926102626,0.202433,98798.0,98790.0,0.08033004]
[1733926102774,0.20243,98800.0,98790.0,0.08033004]
[1733926102775,0.202437,98796.0,98790.0,0.08033004]
[1733926102976,0.21487235,98804.0,98790.0,0.08141594]
[1733926103159,0.202422,98804.0,98791.0,0.0476]
[1733926104878,0.20242,98805.0,98791.0,0.0476]
[1733926105351,0.202421,98804.0,98792.0,0.00531207]
[1733926105497,0.202432,98799.0,98792.0,0.00531207]
[1733926105716,0.2226752,98799.0,98792.0,0.00531207]
[1733926105918,0.202428,98801.0,98792.0,0.00531207]
[1733926106271,0.13120751,98810.0,98792.0,0.00531207]
[1733926106272,0.151,98805.0,98793.0,0.0762]
[1733926106482,0.202443,98793.0,98791.0,0.001]
[1733926106747,0.202443,98793.0,98790.0,8.59e-05]
[1733926106748,0.202447,98791.0,98790.0,8.59e-05]
[1733926106937,0.48934693,98791.0,98790.0,8.59e-05]
[1733926107143,0.57877012,98791.0,98790.0,8.59e-05]
[1733926107353,0.82876942,98791.0,98790.0,9e-07]
[1733926107771,0.96486001,98791.0,98790.0,9e-07]
[1733926107975,0.97876942,98791.0,98790.0,9e-07]
[1733926108116,1.07079944,98791.0,98790.0,9e-07]
[1733926108320,0.7524673,98781.0,98780.0,8e-07]
[1733926108614,0.98009259,98781.0,98780.0,8e-07]
[1733926108785,1.12666845,98781.0,98780.0,9e-07]
[1733926109013,1.07081796,98781.0,98780.0,9e-07]
[1733926109176,1.02540973,98781.0,98780.0,9e-07]
[1733926109380,0.98162708,98781.0,98780.0,9e-07]
[1733926109579,0.98762708,98781.0,98780.0,0.0010009]
[1733926109747,0.99662708,98781.0,98780.0,0.0020009]
[1733926109947,0.89536723,98781.0,98780.0,0.0010009]
[1733926110144,0.88936723,98781.0,98780.0,9e-07]
[1733926110537,1.04035958,98781.0,98780.0,0.0020009]
[1733926110747,0.202486,98772.0,98771.0,0.0003609]
[1733926110926,0.48938593,98772.0,98771.0,0.0004669]
[1733926112681,0.15,98760.0,98751.0,0.000315]
[1733926112895,0.35255,98741.0,98730.0,8.57e-05]
[1733926113104,0.4893853,98741.0,98730.0,8.57e-05]
[1733926113308,0.45787524,98741.0,98730.0,8.57e-05]
[1733926114395,0.36497254,98741.0,98732.0,0.1249]
[1733926114603,0.36055,98741.0,98740.0,0.00163755]
[1733926115076,0.008,98741.0,98740.0,0.00163755]
[1733926115487,0.008,98741.0,98740.0,0.07915017]
[1733926115721,0.009,98741.0,98740.0,0.0850161]
[1733926115946,0.001,98741.0,98740.0,0.0840161]
[1733926116095,0.006,98741.0,98740.0,0.08300348]
[1733926116509,0.007,98741.0,98740.0,0.08300348]
[1733926116717,0.008,98741.0,98740.0,0.08300348]
[1733926116921,0.002,98741.0,98740.0,0.08300348]
[1733926117132,0.001,98741.0,98740.0,0.08300348]
[1733926117339,0.002,98741.0,98740.0,0.08300348]
[1733926117687,0.001,98741.0,98740.0,0.08300348]
[1733926117864,0.202519,98756.0,98740.0,0.08300348]
[1733926118093,0.25532524,98755.0,98740.0,0.08300348]
[1733926118310,0.001,98741.0,98740.0,0.07713755]
[1733926118720,0.202542,98745.0,98740.0,0.08300348]
[1733926118922,0.202534,98749.0,98740.0,0.08300348]
[1733926119131,0.001,98741.0,98740.0,0.00650348]
[1733926119341,0.405088,98744.0,98740.0,0.00063755]
[1733926119556,0.405088,98744.0,98740.0,0.00650348]
[1733926119763,0.001,98741.0,98740.0,0.00063755]
[1733926120418,0.10532524,98741.0,98740.0,0.00063755]
[1733926121043,0.25532524,98741.0,98740.0,0.00263755]
[1733926121487,0.25532524,98741.0,98731.0,0.0004]
[1733926121488,0.15,98738.0,98731.0,0.0004]
[1733926121694,0.15,98738.0,98730.0,8.57e-05]
[1733926121695,0.15,98731.0,98730.0,8.57e-05]
[1733926121913,0.25532524,98731.0,98730.0,8.57e-05]
[1733926122106,0.25532524,98731.0,98730.0,0.00025126]
[1733926122316,0.33637036,98731.0,98730.0,0.00025126]
[1733926122518,0.25532524,98731.0,98730.0,0.00025126]
[1733926122955,0.26432524,98731.0,98730.0,0.00025126]
[1733926123173,0.009,98731.0,98730.0,0.00025126]
[1733926123388,0.202558,98737.0,98730.0,0.00025126]
[1733926123596,0.009,98731.0,98730.0,0.00025126]
[1733926124022,0.202543,98745.0,98730.0,0.08285126]
[1733926124269,0.202558,98737.0,98730.0,0.08285126]
[1733926124468,0.005,98731.0,98730.0,0.08285126]
[1733926124881,0.405134,98733.0,98730.0,0.08285126]
[1733926125095,0.202567,98733.0,98730.0,0.08285126]
[1733926125512,0.003,98731.0,98730.0,0.08285126]
[1733926125928,0.15,98743.0,98730.0,0.08285126]
[1733926126131,0.202556,98738.0,98730.0,0.08285126]
[1733926126339,0.15,98737.0,98730.0,0.00025126]
[1733926126747,0.202532,98750.0,98730.0,0.00025126]
[1733926126949,0.202535,98748.0,98731.0,0.1239]
[1733926127098,0.15,98747.0,98731.0,0.1239]
[1733926127278,0.002,98738.0,98731.0,0.1239]
[1733926128667,0.202556,98738.0,98731.0,0.1239]
[1733926129649,0.203556,98738.0,98731.0,0.1239]
[1733926129851,0.202556,98738.0,98731.0,0.1239]
[1733926130504,0.20255,98741.0,98731.0,0.1259]
[1733926130846,0.15,98748.0,98731.0,0.1259]
[1733926131065,0.15,98748.0,98731.0,0.1239]
[1733926131491,0.202534,98749.0,98731.0,0.1259]
[1733926131693,0.202534,98749.0,98732.0,0.202568]
[1733926131694,0.15,98746.0,98732.0,0.202568]
[1733926131894,0.15,98746.0,98731.0,0.1239]
[1733926132228,0.001,98738.0,98731.0,0.1249]
[1733926132427,0.202541,98745.0,98731.0,0.1249]
[1733926132652,0.15,98746.0,98732.0,0.202568]
[1733926132832,0.15,98748.0,98732.0,0.20844743]
[1733926133033,0.15,98746.0,98732.0,0.20844743]
[1733926133238,0.202543,98744.0,98732.0,0.00587943]
[1733926133463,0.001,98738.0,98732.0,0.00587943]
[1733926133667,0.15,98746.0,98732.0,0.00687943]
[1733926134102,0.21459558,98757.0,98732.0,0.00689218]
[1733926134103,0.15,98752.0,98732.0,0.00689218]
[1733926134307,0.15,98752.0,98738.0,0.202555]
[1733926134510,0.202512,98760.0,98743.0,0.202545]
[1733926134715,0.2026418,98780.0,98743.0,0.202545]
[1733926134716,0.2025,98766.0,98743.0,0.202545]